{"text_format":"1","workbook":"xlsx","n_sheets":3,"sheets":["Instrucciones de uso","Ingresar los datos","Recomendaciones"],"not_rendered":{"charts":1,"images":8,"macros":1,"external_links":0,"defined_names":3,"comments":0,"pivot_tables":0},"unopened":[],"bounds":{"document_bytes":16777216,"sheet_cells":100000,"rows_first":2000,"rows_last":500,"rows_between":2000,"halvings":0,"cell_chars":16384,"cell_head_chars":4096},"cells_cut":0,"cells_raw":0,"read":"whole","date_system":"1900"}

{"sheet":"Instrucciones de uso","index":0,"n_rows":12,"n_cols":2,"rows_kept":12,"cut":false,"hidden":false,"merged":[[11,1,12,16],[5,1,5,7],[0,1,0,16],[5,9,5,12],[1,1,1,15],[2,1,2,15],[3,1,3,15]]}
[null,"Instrucciones para el tamizador de alimento"]
[null,"1- Quitar la tapa del tamizador e insertar la tapa vertical en la ranura en medio del compartimiento de >3mm.\n2- Tomar muestras del alimento correctamente, y llenar el compartimiento izquierdo con alimento."]
[null,"3- Quitar la tapa y cerrar el tamizador colocando nuevamente la tapa en la ranura.                                                                                                                                                                                                                                                                                              4- Posicionar el tamizador HUBBARD de manera vertical (el compartimiento > 3mm en la parte superior) y agitar por 60 segundos alternando de derecha a izquierda y arriba y abajo. "]
[null,"5- Leer los resultados y anotar la cantidad de alimento en cada compartimiento usando la balanza graduada que se encuentra a la izquierda de cada compartimiento. \n6- Ingresar los resultados en la pestaña de datos “Ingresar los datos” de este archivo Excel. \n7- Quitar la tapa y vaciar el alimento del tamizador. Limpiar las zarandas con brocha. \n8- Para tener un buen análisis de la muestra del alimento, repetir el proceso con el mismo alimento hasta 5 veces."]
[]
[]
[]
[]
[]
[]
[]
[null,"www.hubbardbreeders.com"]

{"sheet":"Ingresar los datos","index":1,"n_rows":46,"n_cols":16,"rows_kept":46,"cut":false,"hidden":false,"merged":[[0,4,2,15],[3,5,3,7],[3,8,3,15],[21,4,41,15],[12,4,13,4],[11,4,11,15],[48,4,1048575,15],[4,8,10,15],[42,4,42,15],[43,4,44,15],[45,4,45,15],[12,10,20,10],[12,11,12,15],[12,5,12,9],[4,5,4,7],[6,5,6,7],[7,5,7,7],[9,5,9,7],[10,5,10,7],[8,5,8,7],[5,5,5,7]]}
[null,null,null,null,"Registro Para Calidad Física del Alimento"]
[]
[]
[null,null,null,null,"Compañía","Hubbard",null,null,"¿Cómo utilizar este documento?"]
[null,null,null,null,"Fecha","2025-01-01",null,null,"1-Ingresar los valores en las celdas verdes:\nEs importante llenar en el tipo de alimento y presentación del alimento para tener una comparación correcta con las recomendaciones de Hubbard.\n\n2-Interpretación / Leyenda:\nLos resultados acordes con las recomendaciones de Hubbard.\nLos resultados NO acordes con las recomendaciones de Hubbard."]
[null,null,null,null,"Producto","PS Hembra EFFICIENCY PLUS"]
[null,null,null,null,"Nombre de granja","Cocorico"]
[null,null,null,null,"N° de caseta",1]
[null,null,null,null,"Fábrica de alimento","Feed  Plus"]
[null,null,null,null,"Tipo de alimento","Reproductora III"]
[null,null,null,null,"Presentación de alimento","Harina"]
[]
[null,null,null,null,null,"Ingresar los valores leídos en el tamizador de alimento",null,null,null,null,null,"% de la muestra"]
[null,null,null,null,null,">3mm","2-3mm","1-2mm","<1mm","Total",null,">3mm","2-3mm","1-2mm","<1mm","Total"]
[null,null,null,null,"Sub Muestra 1",10,45,35,10,{"$f":"IF(OR(F15=\"\",G15=\"\",H15=\"\",I15=\"\"),\"\",SUM(F15:I15))","v":100},null,{"$f":"IF(J15=\"\",\"\",F15/$J15)","v":0.1},{"$f":"IF(J15=\"\",\"\",G15/$J15)","v":0.45},{"$f":"IF(J15=\"\",\"\",H15/$J15)","v":0.35},{"$f":"IF(J15=\"\",\"\",I15/$J15)","v":0.1},{"$f":"IF(J15=\"\",\"\",J15/$J15)","v":1}]
[null,null,null,null,"Sub Muestra 2",12.5,42.5,32.5,15,{"$f":"IF(OR(F16=\"\",G16=\"\",H16=\"\",I16=\"\"),\"\",SUM(F16:I16))","v":102.5},null,{"$f":"IF(J16=\"\",\"\",F16/$J16)","v":0.12195121951219512},{"$f":"IF(J16=\"\",\"\",G16/$J16)","v":0.41463414634146339},{"$f":"IF(J16=\"\",\"\",H16/$J16)","v":0.31707317073170732},{"$f":"IF(J16=\"\",\"\",I16/$J16)","v":0.14634146341463414},{"$f":"IF(J16=\"\",\"\",J16/$J16)","v":1}]
[null,null,null,null,"Sub Muestra 3",15,40,30,15,100,null,{"$f":"IF(J17=\"\",\"\",F17/$J17)","v":0.15},0.4,0.3,0.15,1]
[null,null,null,null,"Sub Muestra 4",17.5,37.5,27.5,12.5,95,null,{"$f":"IF(J18=\"\",\"\",F18/$J18)","v":0.18421052631578946},{"$f":"IF(J18=\"\",\"\",G18/$J18)","v":0.39473684210526316},0.28947368421052633,0.13157894736842105,1]
[null,null,null,null,"Sub Muestra 5",20,35,25,15,{"$f":"IF(OR(F19=\"\",G19=\"\",H19=\"\",I19=\"\"),\"\",SUM(F19:I19))","v":95},null,{"$f":"IF(J19=\"\",\"\",F19/$J19)","v":0.21052631578947367},{"$f":"IF(J19=\"\",\"\",G19/$J19)","v":0.36842105263157893},0.26315789473684209,0.15789473684210525,1]
[null,null,null,null,"Promedio",{"$f":"IF($F$15>0.001,AVERAGE(F15:F19),\"\")","v":15},{"$f":"IF($F$15>0.001,AVERAGE(G15:G19),\"\")","v":40},{"$f":"IF($F$15>0.001,AVERAGE(H15:H19),\"\")","v":30},{"$f":"IF($F$15>0.001,AVERAGE(I15:I19),\"\")","v":13.5},{"$f":"IF($F$15>0.001,AVERAGE(J15:J19),\"\")","v":98.5},null,{"$f":"IF($F$15>0.001,AVERAGE(L15:L19),\"\")","v":0.15333761232349166},{"$f":"IF($F$15>0.001,AVERAGE(M15:M19),\"\")","v":0.40555840821566108},{"$f":"IF($F$15>0.001,AVERAGE(N15:N19),\"\")","v":0.30394094993581511},{"$f":"IF($F$15>0.001,AVERAGE(O15:O19),\"\")","v":0.13716302952503207},{"$f":"IF($F$15>0.001,AVERAGE(P15:P19),\"\")","v":1}]
[null,null,null,null,"Recomendación Hubbard ",{"$f":"IF(L21=\"\",\"\",L21*100)","v":15},{"$f":"IF(M21=\"\",\"\",M21*100)","v":40},{"$f":"IF(N21=\"\",\"\",N21*100)","v":30},{"$f":"IF(O21=\"\",\"\",O21*100)","v":15},{"$f":"IF(P21=\"\",\"\",P21*100)","v":100},null,{"$f":"IF(VLOOKUP($F$11&$F$10&$L$14,Recomendaciones!A2:E97,5)=\"N/A\",\"\",VLOOKUP($F$11&$F$10&$L$14,Recomendaciones!A2:E97,5))","v":0.15},{"$f":"IF(VLOOKUP($F$11&$F$10&$M$14,Recomendaciones!$A$2:$E$97,5)=\"N/A\",\"\",VLOOKUP($F$11&$F$10&$M$14,Recomendaciones!$A$2:$E$97,5))","v":0.4},{"$f":"IF(VLOOKUP($F$11&$F$10&$N$14,Recomendaciones!$A$2:$E$97,5)=\"N/A\",\"\",VLOOKUP($F$11&$F$10&$N$14,Recomendaciones!$A$2:$E$97,5))","v":0.3},{"$f":"IF(VLOOKUP($F$11&$F$10&$O$14,Recomendaciones!$A$2:$E$97,5)=\"N/A\",\"\",VLOOKUP($F$11&$F$10&$O$14,Recomendaciones!$A$2:$E$97,5))","v":0.15},{"$f":"IF(SUM(L21:O21)=0,\"\",SUM(L21:O21))","v":1}]
[]
[]
[]
[]
[]
[]
[]
[]
[]
[]
[]
[]
[]
[]
[]
[]
[]
[]
[]
[]
[]
[null,null,null,null,"Por favor, se recomienda usar la experiencia local y consultar con su Gerente Técnico de Hubbard para obtener más asistencia."]
[null,null,null,null,"www.hubbardbreeders.com"]
[]
[null,null,null,null,"Los datos de desempeño en este documento fueron obtenidos como resultado y experiencia de nuestra propia investigación o de nuestros clientes. De ninguna\nmanera los datos de este documento constituyen una garantía del mismo desempeño bajo distintas condiciones de nutrición, densidad o ambiente físico o biológico. En particular (pero sin limitación de lo anterior) no otorgamos ninguna garantía con respecto a la idoneidad para el propósito, desempeño, uso, naturaleza o calidad de los lotes, ni ninguna garantía con respecto al cumplimiento de la legislación local acerca de salud, bienestar, u otros aspectos de la producción animal. Hubbard no garantiza la exactitud o integridad de la información en este documento. V 2025-01"]

{"sheet":"Recomendaciones","index":2,"n_rows":97,"n_cols":10,"rows_kept":97,"cut":false,"hidden":true,"merged":[]}
["ID","Form","Particle size","Feed type","Recommandation","Quality of feed presentation"]
[{"$f":"B2&D2&C2","v":"HarinaCrecimiento<1mm"},"Harina","<1mm","Crecimiento",0.2,"Good",null,"Miga","Pre-Incial","PS Hembra EFFICIENCY PLUS"]
["HarinaCrecimiento>3mm","Harina",">3mm","Crecimiento",0.1,"Good",null,"Harina","Inicial","PS Hembra Premium (JA57; JA57Ki; JA87; REDBRO; Redbro Mini; P6N)  "]
["HarinaCrecimiento1-2mm","Harina","1-2mm","Crecimiento",0.35,"Good",null,"Pellets","Crecimiento","PS Machos (M77/M99)"]
["HarinaCrecimiento2-3mm","Harina","2-3mm","Crecimiento",0.35,"Good",null,null,"Transición","PS Machos (Machos de crecimiento intermedio, machos de lento crecimiento)"]
["HarinaInicial<1mm","Harina","<1mm","Inicial",0.2,"Good",null,null,"Inicio de puesta"]
["HarinaInicial>3mm","Harina",">3mm","Inicial",0.05,"Good",null,null,"Reproductora I"]
["HarinaInicial1-2mm","Harina","1-2mm","Inicial",0.5,"Good",null,null,"Reproductora II"]
["HarinaInicial2-3mm","Harina","2-3mm","Inicial",0.25,"Good",null,null,"Reproductora III"]
["HarinaInicio de puesta<1mm","Harina","<1mm","Inicio de puesta",0.15,"Good"]
["HarinaInicio de puesta>3mm","Harina",">3mm","Inicio de puesta",0.15,"Good"]
["HarinaInicio de puesta1-2mm","Harina","1-2mm","Inicio de puesta",0.3,"Good"]
["HarinaInicio de puesta2-3mm","Harina","2-3mm","Inicio de puesta",0.4,"Good"]
["HarinaPre-Incial<1mm","Harina","<1mm","Pre-Incial",0.2,"Good"]
["HarinaPre-Incial>3mm","Harina",">3mm","Pre-Incial",0.05,"Good"]
["HarinaPre-Incial1-2mm","Harina","1-2mm","Pre-Incial",0.5,"Good"]
["HarinaPre-Incial2-3mm","Harina","2-3mm","Pre-Incial",0.25,"Good"]
["HarinaReproductora I<1mm","Harina","<1mm","Reproductora I",0.15,"Good"]
["HarinaReproductora I>3mm","Harina",">3mm","Reproductora I",0.15,"Good"]
["HarinaReproductora I1-2mm","Harina","1-2mm","Reproductora I",0.3,"Good"]
["HarinaReproductora I2-3mm","Harina","2-3mm","Reproductora I",0.4,"Good"]
["HarinaReproductora II<1mm","Harina","<1mm","Reproductora II",0.15,"Good"]
["HarinaReproductora II>3mm","Harina",">3mm","Reproductora II",0.15,"Good"]
["HarinaReproductora II1-2mm","Harina","1-2mm","Reproductora II",0.3,"Good"]
["HarinaReproductora II2-3mm","Harina","2-3mm","Reproductora II",0.4,"Good"]
["HarinaReproductora III<1mm","Harina","<1mm","Reproductora III",0.15,"Good"]
["HarinaReproductora III>3mm","Harina",">3mm","Reproductora III",0.15,"Good"]
["HarinaReproductora III1-2mm","Harina","1-2mm","Reproductora III",0.3,"Good"]
["HarinaReproductora III2-3mm","Harina","2-3mm","Reproductora III",0.4,"Good"]
["HarinaTransición<1mm","Harina","<1mm","Transición",0.2,"Good"]
["HarinaTransición>3mm","Harina",">3mm","Transición",0.1,"Good"]
["HarinaTransición1-2mm","Harina","1-2mm","Transición",0.35,"Good"]
["HarinaTransición2-3mm","Harina","2-3mm","Transición",0.35,"Good"]
["MigaCrecimiento<1mm","Miga","<1mm","Crecimiento",0.1,"Good"]
["MigaCrecimiento>3mm","Miga",">3mm","Crecimiento",0.5,"Good"]
["MigaCrecimiento1-2mm","Miga","1-2mm","Crecimiento",0.1,"Good"]
["MigaCrecimiento2-3mm","Miga","2-3mm","Crecimiento",0.3,"Good"]
["MigaInicial<1mm","Miga","<1mm","Inicial",0.05,"Good"]
["MigaInicial>3mm","Miga",">3mm","Inicial",0,"Good"]
["MigaInicial1-2mm","Miga","1-2mm","Inicial",0.55000000000000004,"Good"]
["MigaInicial2-3mm","Miga","2-3mm","Inicial",0.4,"Good"]
["MigaInicio de puesta<1mm","Miga","<1mm","Inicio de puesta",0.1,"Good"]
["MigaInicio de puesta>3mm","Miga",">3mm","Inicio de puesta",0.5,"Good"]
["MigaInicio de puesta1-2mm","Miga","1-2mm","Inicio de puesta",0.1,"Good"]
["MigaInicio de puesta2-3mm","Miga","2-3mm","Inicio de puesta",0.3,"Good"]
["MigaPre-Incial<1mm","Miga","<1mm","Pre-Incial",0.05,"Good"]
["MigaPre-Incial>3mm","Miga",">3mm","Pre-Incial",0,"Good"]
["MigaPre-Incial1-2mm","Miga","1-2mm","Pre-Incial",0.55000000000000004,"Good"]
["MigaPre-Incial2-3mm","Miga","2-3mm","Pre-Incial",0.4,"Good"]
["MigaReproductora I<1mm","Miga","<1mm","Reproductora I",0.1,"Good"]
["MigaReproductora I>3mm","Miga",">3mm","Reproductora I",0.5,"Good"]
["MigaReproductora I1-2mm","Miga","1-2mm","Reproductora I",0.1,"Good"]
["MigaReproductora I2-3mm","Miga","2-3mm","Reproductora I",0.3,"Good"]
["MigaReproductora II<1mm","Miga","<1mm","Reproductora II",0.1,"Good"]
["MigaReproductora II>3mm","Miga",">3mm","Reproductora II",0.5,"Good"]
["MigaReproductora II1-2mm","Miga","1-2mm","Reproductora II",0.1,"Good"]
["MigaReproductora II2-3mm","Miga","2-3mm","Reproductora II",0.3,"Good"]
["MigaReproductora III<1mm","Miga","<1mm","Reproductora III",0.1,"Good"]
["MigaReproductora III>3mm","Miga",">3mm","Reproductora III",0.5,"Good"]
["MigaReproductora III1-2mm","Miga","1-2mm","Reproductora III",0.1,"Good"]
["MigaReproductora III2-3mm","Miga","2-3mm","Reproductora III",0.3,"Good"]
["MigaTransición<1mm","Miga","<1mm","Transición",0.1,"Good"]
["MigaTransición>3mm","Miga",">3mm","Transición",0.5,"Good"]
["MigaTransición1-2mm","Miga","1-2mm","Transición",0.1,"Good"]
["MigaTransición2-3mm","Miga","2-3mm","Transición",0.3,"Good"]
[{"$f":"B66&D66&C66","v":"PelletsCrecimiento<1mm"},"Pellets","<1mm","Crecimiento",0.1,"Good"]
["PelletsCrecimiento>3mm","Pellets",">3mm","Crecimiento",0.7,"Good"]
["PelletsCrecimiento1-2mm","Pellets","1-2mm","Crecimiento",0.1,"Good"]
["PelletsCrecimiento2-3mm","Pellets","2-3mm","Crecimiento",0.1,"Good"]
["PelletsInicial<1mm","Pellets","<1mm","Inicial","N/A","Good"]
["PelletsInicial>3mm","Pellets",">3mm","Inicial","N/A","Good"]
["PelletsInicial1-2mm","Pellets","1-2mm","Inicial","N/A","Good"]
["PelletsInicial2-3mm","Pellets","2-3mm","Inicial","N/A","Good"]
["PelletsInicio de puesta<1mm","Pellets","<1mm","Inicio de puesta",0.1,"Good"]
["PelletsInicio de puesta>3mm","Pellets",">3mm","Inicio de puesta",0.7,"Good"]
["PelletsInicio de puesta1-2mm","Pellets","1-2mm","Inicio de puesta",0.1,"Good"]
["PelletsInicio de puesta2-3mm","Pellets","2-3mm","Inicio de puesta",0.1,"Good"]
["PelletsPre-Incial<1mm","Pellets","<1mm","Pre-Incial","N/A","Good"]
["PelletsPre-Incial>3mm","Pellets",">3mm","Pre-Incial","N/A","Good"]
["PelletsPre-Incial1-2mm","Pellets","1-2mm","Pre-Incial","N/A","Good"]
["PelletsPre-Incial2-3mm","Pellets","2-3mm","Pre-Incial","N/A","Good"]
["PelletsReproductora I<1mm","Pellets","<1mm","Reproductora I",0.1,"Good"]
["PelletsReproductora I>3mm","Pellets",">3mm","Reproductora I",0.7,"Good"]
["PelletsReproductora I1-2mm","Pellets","1-2mm","Reproductora I",0.1,"Good"]
["PelletsReproductora I2-3mm","Pellets","2-3mm","Reproductora I",0.1,"Good"]
["PelletsReproductora II<1mm","Pellets","<1mm","Reproductora II",0.1,"Good"]
["PelletsReproductora II>3mm","Pellets",">3mm","Reproductora II",0.7,"Good"]
["PelletsReproductora II1-2mm","Pellets","1-2mm","Reproductora II",0.1,"Good"]
["PelletsReproductora II2-3mm","Pellets","2-3mm","Reproductora II",0.1,"Good"]
["PelletsReproductora III<1mm","Pellets","<1mm","Reproductora III",0.1,"Good"]
["PelletsReproductora III>3mm","Pellets",">3mm","Reproductora III",0.7,"Good"]
["PelletsReproductora III1-2mm","Pellets","1-2mm","Reproductora III",0.1,"Good"]
["PelletsReproductora III2-3mm","Pellets","2-3mm","Reproductora III",0.1,"Good"]
["PelletsTransición<1mm","Pellets","<1mm","Transición",0.1,"Good"]
["PelletsTransición>3mm","Pellets",">3mm","Transición",0.7,"Good"]
["PelletsTransición1-2mm","Pellets","1-2mm","Transición",0.1,"Good"]
["PelletsTransición2-3mm","Pellets","2-3mm","Transición",0.1,"Good"]